fUSD/lending_fUSD_20251117
["ID","MTS","AMOUNT","RATE_DAILY","PERIOD"]
[394239115,1763401838038,-500.0,0.00038809,15]
[394239117,1763401838048,-500.0,0.00038809,15]
[394239119,1763401838058,-500.0,0.00038809,15]
[394239120,1763401838068,-500.0,0.00038809,15]
[394239122,1763401838078,-500.0,0.00038809,15]
[394239124,1763401838088,-500.0,0.00038809,15]
[394239126,1763401838096,-500.0,0.00038809,15]
[394239128,1763401838108,-500.0,0.00038809,15]
[394239130,1763401838121,-500.0,0.00038809,15]
[394239132,1763401838135,-500.0,0.00038809,15]
[394239134,1763401838147,-500.0,0.00038809,15]
[394239136,1763401838156,-500.0,0.00038809,15]
[394239138,1763401838166,-583.33649462,0.00038809,15]
[394239140,1763401838176,-500.0,0.00038809,15]
[394239142,1763401838185,-500.0,0.00038809,15]
[394239144,1763401838195,-500.0,0.00038809,15]
[394239146,1763401838207,-500.0,0.00038809,15]
[394239148,1763401838218,-500.0,0.00038809,15]
[394239151,1763401838228,-500.0,0.00038809,15]
[394239153,1763401838238,-500.0,0.00038809,15]
[394239155,1763401838248,-500.0,0.00038809,15]
[394239157,1763401838257,-500.0,0.00038809,15]
[394239159,1763401838266,-500.0,0.00038809,15]
[394239161,1763401838276,-500.0,0.00038809,15]
[394239162,1763401838285,-500.0,0.00038809,15]
[394239165,1763401838295,-500.0,0.00038809,15]
[394239167,1763401838305,-500.0,0.00038809,15]
[394239169,1763401838315,-1005.09466175,0.0003881,2]
[394239171,1763401838324,-500.0,0.0003881,2]
[394239173,1763401838334,-326.3196045,0.0003881,120]
[394239175,1763401838344,-500.0,0.0003881,120]
[394239177,1763401838353,-500.0,0.0003881,120]
[394239179,1763401838365,-500.0,0.0003881,2]
[394239181,1763401838375,-500.0,0.0003881,2]
[394239183,1763401838385,-300.0,0.0003881,2]
[394239185,1763401838394,-500.0,0.0003881,2]
[394239187,1763401838404,-337.68888476,0.0003881,2]
[394239189,1763401838413,-500.0,0.0003881,7]
[394239191,1763401838423,-3011.9463,0.00038811,2]
[394239193,1763401838433,-760000.0,0.00038811,2]
[394239195,1763401838443,-1108.00387347,0.00038811,6]
[394239197,1763401838453,-150.0,0.00038861,7]
[394239199,1763401838462,-150.0,0.00038861,7]
[394239201,1763401838472,-500.0,0.00038873,5]
[394239203,1763401838481,-500.0,0.00038873,5]
[394239205,1763401838491,-160.77470551,0.00038873,5]
[394239207,1763401838501,-500.0,0.00038873,5]
[394239209,1763401838511,-500.0,0.00038873,5]
[394239211,1763401838521,-501.63312491,0.00038873,5]
[394239213,1763401838530,-500.0,0.00038873,5]
[394239215,1763401838540,-500.0,0.00038873,5]
[394239217,1763401838550,-500.0,0.00038873,5]
[394239219,1763401838560,-500.0,0.00038873,5]
[394239220,1763401838570,-500.0,0.00038873,5]
[394239222,1763401838580,-500.0,0.00038873,5]
[394239224,1763401838590,-500.0,0.00038873,5]
[394239226,1763401838602,-500.0,0.00038873,5]
[394239228,1763401838614,-166.31910834,0.00038873,5]
[394239230,1763401838624,-500.0,0.00038873,5]
[394239232,1763401838634,-22524.0524222,0.00038878,4]
[394239234,1763401838644,-4099.0292,0.00038888,30]
[394239237,1763401838654,-2050.0,0.00038898,2]
[394239238,1763401838663,-151.0,0.00038898,14]
[394239241,1763401838674,-3000.0,0.000389,14]
[394239242,1763401838683,-48157.1124663,0.00038901,4]
[394239244,1763401838694,-247764.576645,0.00038901,4]
[394239246,1763401838704,-150.0,0.00038901,7]
[394239249,1763401838715,-147031.3010656,0.00038911,2]
[394239250,1763401838724,-1232.9840937,0.00038911,2]
[394239253,1763401838734,-216284.0389952,0.00038911,2]
[394239254,1763401838744,-5485.36147486,0.00038911,2]
[394239257,1763401838761,-2771.7012703,0.00038911,2]
[394239259,1763401838773,-12330.32044834,0.00038911,2]
[394239264,1763401838806,-841.9856905,0.00038911,2]
[394239350,1763401839736,-1025.0,0.00038911,2]
[394239352,1763401839748,-23260.2398277,0.00038911,2]
[394239357,1763401839789,-4486.67298881,0.00038911,2]
[394239364,1763401839845,-60969.31353754,0.00038911,2]
[394239366,1763401839857,-4815.55,0.00038911,2]
[394239369,1763401839869,-1368.68510986,0.00038911,2]
[394239371,1763401839880,-1960.0,0.00038911,2]
[394239373,1763401839891,-2333.0,0.00038911,2]
[394239408,1763401840206,-344244.18203584,0.00038911,2]
[394239411,1763401840220,-853.3284752,0.00038911,2]
[394239413,1763401840232,-2126.0,0.00038911,2]
[394239415,1763401840244,-365.6076826,0.00038911,2]
[394239417,1763401840254,-10250.8,0.00038911,2]
[394239792,1763401843222,-357.69242756,0.00038911,2]
[394239795,1763401843233,-544.15,0.00038911,2]
[394239808,1763401843297,-615.51774373,0.00038911,2]
[394239812,1763401843309,-271.70079059,0.00038911,2]
[394239815,1763401843320,-533.77400246,0.00038911,2]
[394239819,1763401843332,-13861.35483276,0.00038911,2]
[394239822,1763401843343,-16314.60883593,0.00038911,2]
[394239826,1763401843354,-536.37273109,0.00038911,2]
[394240123,1763401845890,-1635.65833684,0.00038133,20]
[394240147,1763401846103,-322.24574374,0.00038133,20]
[394240149,1763401846114,-1309.63452968,0.00038911,2]
[394240151,1763401846126,-7629.12046383,0.00038911,2]
[394240156,1763401846159,-2667.61742552,0.00038911,2]
[394240158,1763401846168,-4627.4482501,0.00038911,2]
[394240159,1763401846177,-160.968005,0.00038911,2]
[394240160,1763401846186,-150.0,0.00038929,7]
[394240161,1763401846195,-33327.7153,0.0003896,2]
[394240162,1763401846204,-1000.0,0.0003896,2]
[394240163,1763401846213,-150.0,0.00038965,7]
[394240164,1763401846223,-150.0,0.00038965,7]
[394240165,1763401846232,-363.48130429,0.00038973,5]
[394240166,1763401846241,-503.32747912,0.00038973,5]
[394240167,1763401846250,-500.0,0.00038973,5]
[394240168,1763401846259,-500.0,0.00038973,5]
[394240169,1763401846268,-500.0,0.00038973,5]
[394240170,1763401846277,-150.0,0.00038973,5]
[394240171,1763401846286,-500.0,0.00038973,5]
[394240172,1763401846295,-501.0162978,0.00038973,5]
[394240173,1763401846305,-500.0,0.00038973,5]
[394240174,1763401846315,-500.0,0.00038973,5]
[394240175,1763401846324,-578.15374022,0.00038973,5]
[394240176,1763401846333,-161.06747613,0.00038973,5]
[394240177,1763401846343,-500.0,0.00038973,5]
[394240178,1763401846352,-500.0,0.00038973,5]
[394240179,1763401846361,-500.0,0.00038973,5]
[394240180,1763401846372,-502.43965722,0.00038973,5]
[394240181,1763401846381,-518.75704326,0.00038973,5]
[394240182,1763401846390,-500.0,0.00038973,5]
[394240183,1763401846400,-501.34785536,0.00038973,5]
[394240184,1763401846409,-501.8690547,0.00038973,5]
[394240186,1763401846418,-500.0,0.00038973,5]
[394240188,1763401846427,-2718.0,0.00038993,2]
[394240190,1763401846436,-9223.56171588,0.00038997,2]
[394240191,1763401846446,-12035.57452739,0.00038997,2]
[394240193,1763401846455,-1064.57506138,0.00039039,2]
[394240195,1763401846464,-203.22338441,0.00039043,2]
[394240197,1763401846474,-187.26019764,0.00039049,2]
[394240199,1763401846483,-214.63798474,0.00039049,2]
[394240200,1763401846492,-188.21129635,0.00039049,2]
[394240202,1763401846502,-200.79436653,0.00039056,2]
[394240204,1763401846512,-126213.16347337,0.0003906,2]
[394240205,1763401846521,-604.0,0.00039066,120]
[394240206,1763401846530,-762.77,0.00039073,30]
[394240207,1763401846540,-157.34180474,0.00039081,15]
[394240208,1763401846549,-302.97862019,0.00039081,2]
[394240209,1763401846559,-162.64827273,0.00039084,2]
[394240210,1763401846568,-500.0,0.00039084,2]
[394240211,1763401846577,-500.0,0.00039084,2]
[394240212,1763401846586,-150.0,0.00039109,7]
[394240214,1763401846596,-150.0,0.0003912,7]
[394240215,1763401846605,-157719.46513873,0.0003913,2]
[394240216,1763401846615,-150.0,0.00039149,7]
[394240217,1763401846626,-503.56266899,0.00039153,2]
[394240219,1763401846635,-2718.0,0.00039169,7]
[394240221,1763401846644,-150.0,0.00039172,7]
[394240222,1763401846653,-166.8981823,0.00039173,5]
[394240223,1763401846662,-502.06530095,0.00039173,5]
[394240224,1763401846672,-500.0,0.00039173,5]
[394240225,1763401846681,-500.0,0.00039173,5]
[394240226,1763401846690,-500.91557619,0.00039173,5]
[394240227,1763401846699,-203.22338443,0.00039179,2]
[394240228,1763401846709,-1064.57506139,0.0003919,2]
[394240229,1763401846718,-150.0,0.0003922,7]
[394240230,1763401846728,-604.0,0.0003924,2]
[394240231,1763401846738,-434.88,0.00039259,2]
[394240232,1763401846747,-150.0,0.00039289,7]
[394240233,1763401846757,-9223.56171588,0.00039293,2]
[394240234,1763401846766,-12035.57452739,0.00039293,2]
[394240235,1763401846775,-762.77,0.00039347,30]
[394240236,1763401846785,-500.0,0.00039358,2]
[394240237,1763401846794,-500.0,0.00039358,2]
[394240238,1763401846804,-150.0,0.00039379,7]
[394240239,1763401846814,-150.0,0.00039379,7]
[394240240,1763401846823,-150.0,0.00039379,7]
[394240241,1763401846833,-150.0,0.00039379,7]
[394240242,1763401846842,-150.0,0.00039379,7]
[394240243,1763401846851,-150.0,0.00039379,7]
[394240244,1763401846860,-150.0,0.00039379,7]
[394240245,1763401846870,-150.0,0.00039379,7]
[394240246,1763401846879,-1000.0,0.00039421,5]
[394240247,1763401846888,-500.78079842,0.00039421,5]
[394240248,1763401846897,-1000.0,0.00039421,5]
[394240249,1763401846906,-184.18282033,0.00039421,5]
[394240250,1763401846915,-1000.0,0.00039421,5]
[394240251,1763401846924,-1000.0,0.00039421,5]
[394240252,1763401846934,-243.37395338,0.00039421,5]
[394240253,1763401846943,-1000.0,0.00039421,5]
[394240254,1763401846954,-385.96078134,0.00039421,5]
[394240255,1763401846963,-157.34180474,0.00039462,15]
[394240256,1763401846972,-302.97862019,0.00039462,2]
[394240257,1763401846981,-150.0,0.0003947,7]
[394240258,1763401846990,-500.0,0.00039473,55]
[394240259,1763401846999,-151.0,0.00039477,7]
[394240260,1763401847009,-1000.0,0.00039477,7]
[394240261,1763401847018,-1000.0,0.00039477,7]
[394240262,1763401847027,-1000.0,0.00039477,7]
[394240263,1763401847038,-500.0,0.00039477,7]
[394240264,1763401847048,-1000.0,0.00039477,7]
[394240265,1763401847057,-500.0,0.00039477,7]
[394240266,1763401847066,-1000.0,0.00039477,7]
[394240267,1763401847075,-500.0,0.00039477,7]
[394240268,1763401847086,-1000.0,0.00039477,7]
[394240269,1763401847095,-500.0,0.00039477,7]
[394240270,1763401847104,-1000.0,0.00039477,7]
[394240271,1763401847115,-500.0,0.00039477,7]
[394240272,1763401847125,-1000.0,0.00039477,7]
[394240273,1763401847134,-500.0,0.00039477,7]
[394240274,1763401847143,-1000.0,0.00039477,7]
[394240275,1763401847152,-500.0,0.00039477,7]
[394240276,1763401847161,-1000.0,0.00039477,7]
[394240277,1763401847170,-500.0,0.00039477,7]
[394240278,1763401847179,-1000.0,0.00039477,7]
[394240279,1763401847188,-500.0,0.00039477,7]
[394240280,1763401847196,-500.0,0.00039477,7]
[394240281,1763401847205,-500.0,0.00039477,7]
[394240282,1763401847214,-322.6107,0.00039477,7]
[394240283,1763401847224,-334.5472959,0.00039477,7]
[394240284,1763401847233,-346.92554585,0.00039477,7]
[394240285,1763401847242,-359.76179104,0.00039477,7]
[394240286,1763401847251,-151.0,0.00039477,7]
[394240287,1763401847260,-249.20816721,0.00039477,7]
[394240288,1763401847270,-156.587,0.00039477,7]
[394240289,1763401847279,-163.54657815,0.00039477,7]
[394240290,1763401847288,-500.0,0.00039477,7]
[394240291,1763401847298,-500.0,0.00039517,2]
[394240292,1763401847307,-200.0,0.00039518,2]
[394240293,1763401847316,-2529.61364,0.00039518,2]
[394240294,1763401847326,-200.0,0.00039518,2]
[394240295,1763401847335,-1000.0,0.00039521,5]
[394240296,1763401847345,-1000.0,0.00039521,5]
[394240297,1763401847354,-502.02471648,0.00039521,5]
[394240298,1763401847363,-150.0,0.00039521,5]
[394240299,1763401847374,-500.0,0.00039521,5]
[394240300,1763401847383,-500.85943772,0.00039521,5]
[394240301,1763401847392,-500.0,0.00039521,5]
[394240302,1763401847402,-943.44977622,0.00039521,5]
[394240303,1763401847412,-745.44865078,0.00039521,5]
[394240304,1763401847422,-500.0,0.00039521,5]
[394240305,1763401847431,-700.23,0.00039534,2]
[394240306,1763401847442,-700.39,0.00039534,2]
[394240307,1763401847451,-150.0,0.00039539,7]
[394240308,1763401847460,-150.0,0.00039587,7]
[394240309,1763401847469,-2361.0,0.00039587,2]
[394240310,1763401847480,-9223.56171588,0.00039589,2]
[394240311,1763401847489,-12035.57452739,0.00039589,2]
[394240312,1763401847499,-503.56266899,0.00039595,2]
[394240313,1763401847508,-369.74,0.000396,2]
[394240314,1763401847518,-150.0,0.0003961,7]
[394240315,1763401847527,-762.77,0.00039621,30]
[394240316,1763401847537,-199.0,0.00039622,8]
[394240317,1763401847547,-500.0,0.00039632,2]
[394240318,1763401847556,-500.0,0.00039632,2]
[394240319,1763401847566,-150.0,0.00039639,7]
[394240320,1763401847575,-379.37,0.00039643,120]
[394240321,1763401847584,-500.0,0.00039643,7]
[394240322,1763401847593,-500.0,0.00039643,7]
[394240323,1763401847602,-500.0,0.00039643,7]
[394240324,1763401847612,-500.0,0.00039643,30]
[394240325,1763401847621,-7016.59816281,0.00039644,2]
[394240326,1763401847631,-150.0,0.0003965,7]
[394240327,1763401847640,-185.2,0.00039654,2]
[394240328,1763401847651,-1856.0,0.000397,7]
[394240329,1763401847660,-500.0,0.00039721,5]
[394240330,1763401847670,-421.93128195,0.00039721,5]
[394240331,1763401847680,-15585.17112709,0.00039748,2]
[394240332,1763401847690,-242.27,0.00039756,60]
[394240333,1763401847705,-150.0,0.00039794,7]
[394240334,1763401847978,-150.0,0.00039794,7]
[394240335,1763401847988,-300.0,0.00039808,2]
[394240336,1763401848000,-150.0,0.00039808,2]
[394240337,1763401848009,-169.45,0.00039808,2]
[394240338,1763401848023,-177.35,0.00039808,2]
[394240339,1763401848039,-198.0,0.00039808,2]
[394240340,1763401848052,-155.98,0.00039808,2]
[394240341,1763401848064,-150.0,0.00039808,2]
[394240342,1763401848076,-416.78,0.00039808,2]
[394240343,1763401848085,-150.0,0.00039808,2]
[394240344,1763401848094,-169.45,0.00039808,2]
[394240345,1763401848103,-416.78,0.00039808,2]
[394240346,1763401848113,-177.35,0.00039808,2]
[394240347,1763401848125,-150.0,0.00039808,2]
[394240348,1763401848134,-150.0,0.00039808,2]
[394240349,1763401848144,-177.35,0.00039808,2]
[394240350,1763401848153,-416.78,0.00039808,2]
[394240351,1763401848162,-169.45,0.00039808,2]
[394240352,1763401848172,-150.0,0.00039808,2]
[394240353,1763401848184,-169.45,0.00039808,2]
[394240354,1763401848194,-177.35,0.00039808,2]
[394240355,1763401848203,-416.15,0.00039808,2]
[394240356,1763401848212,-150.0,0.00039808,2]
[394240357,1763401848222,-169.45,0.00039808,2]
[394240358,1763401848232,-177.35,0.00039808,2]
[394240359,1763401848241,-369.99,0.00039808,2]
[394240360,1763401848251,-150.0,0.00039808,2]
[394240361,1763401848261,-177.32,0.00039808,2]
[394240362,1763401848270,-150.0,0.00039808,2]
[394240363,1763401848279,-150.0,0.00039808,2]
[394240364,1763401848290,-434.88,0.0003983,2]
[394240365,1763401848299,-150.0,0.0003983,7]
[394240366,1763401848308,-157.34180474,0.00039842,15]
[394240367,1763401848318,-302.97862019,0.00039842,2]
[394240368,1763401848327,-150.0,0.00039858,7]
[394240369,1763401848336,-1170.0,0.00039868,2]
[394240370,1763401848345,-9223.56171588,0.00039885,15]
[394240371,1763401848354,-12035.57452739,0.00039885,2]
[394240372,1763401848363,-762.77,0.00039895,30]
[394240373,1763401848374,-150.0,0.00039898,7]
[394240374,1763401848383,-150.0,0.00039898,7]
[394240375,1763401848392,-10000.0,0.000399,120]
[394240376,1763401848402,-500.0,0.00039906,2]
[394240377,1763401848412,-200.9225493,0.00039906,2]
[394240378,1763401848421,-200.0,0.00039913,2]
[394240379,1763401848431,-200.0,0.00039913,2]
[394240380,1763401848440,-1000.0,0.00039968,5]
[394240381,1763401848450,-1500.0,0.00039968,5]
[394240382,1763401848459,-1259.58284128,0.00039968,5]
[394240383,1763401848468,-1500.0,0.00039968,5]
[394240384,1763401848478,-1186.44939406,0.00039968,5]
[394240385,1763401848487,-163.58,0.00039998,2]
[394240386,1763401848497,-627.41892702,0.00039999,31]
[394240387,1763401848507,-262.37264678,0.00039999,31]
[394240388,1763401848516,-194.0,0.0004,2]
[394240389,1763401848525,-578.0783497,0.0004,2]
[394240390,1763401848535,-479.1746172,0.0004,120]
[394240391,1763401848546,-150.0,0.00040001,7]
[394240392,1763401848556,-150.0,0.0004001,7]
[394240393,1763401848565,-503.56266899,0.00040038,2]
[394240394,1763401848574,-303.68058232,0.00040068,5]
[394240395,1763401848584,-1043.95782135,0.00040068,5]
[394240396,1763401848594,-160.56811758,0.00040068,5]
[394240397,1763401848604,-150.0,0.0004007,7]
[394240398,1763401848614,-150.0,0.0004007,7]
[394240399,1763401848625,-2400.0,0.00040084,7]
[394240400,1763401848635,-1170.0,0.00040087,7]
[394240401,1763401848644,-7978.55,0.00040144,2]
[394240402,1763401848655,-150.0,0.00040157,7]
[394240403,1763401848664,-762.77,0.00040168,30]
[394240404,1763401848674,-150.0,0.00040177,7]
[394240405,1763401848684,-500.0,0.0004018,2]
[394240406,1763401848694,-9223.56171588,0.0004018,15]
[394240407,1763401848706,-12035.57452739,0.0004018,15]
[394240408,1763401848716,-150.0,0.0004019,7]
[394240409,1763401848725,-2361.0,0.00040202,120]
[394240410,1763401848736,-187.26019762,0.00040207,2]
[394240411,1763401848746,-150.0,0.00040208,7]
[394240412,1763401848759,-150.0,0.00040208,7]
[394240413,1763401848768,-157.34180474,0.00040223,15]
[394240414,1763401848777,-302.97862019,0.00040223,28]
[394240415,1763401848786,-1187.0,0.00040239,30]
[394240416,1763401848795,-3800.0,0.000403,14]
[394240417,1763401848805,-200.0,0.00040312,2]
[394240418,1763401848814,-150.0,0.00040321,2]
[394240419,1763401848822,-140.83434602,0.00040341,2]
[394240420,1763401848836,-594.55152758,0.00040341,2]
[394240421,1763401848869,-932.00637064,0.00040341,2]
[394240422,1763401848881,-47.60775576,0.00040341,2]
[394240423,1763401848891,-150.0,0.00040371,7]
[394240424,1763401848900,-535.0,0.00040398,120]
[394240425,1763401848909,-700.0,0.000404,14]
[394240426,1763401848918,-150.0,0.00040416,7]
[394240427,1763401848928,-150.0,0.00040416,7]
[394240428,1763401848938,-150.0,0.00040416,7]
[394240429,1763401848947,-150.0,0.00040416,7]
[394240430,1763401848956,-762.77,0.00040442,30]
[394240431,1763401848965,-500.0,0.00040454,2]
[394240432,1763401848974,-535.0,0.00040458,2]
[394240433,1763401848984,-241.6,0.00040474,14]
[394240434,1763401848993,-9223.56171588,0.00040476,15]
[394240435,1763401849003,-7416.16351899,0.00040476,15]
[394240436,1763401849015,-4619.4110084,0.00040476,15]
[394240437,1763401849025,-503.56266899,0.0004048,2]
[394240438,1763401849035,-700.39,0.00040493,2]
[394240439,1763401849050,-319.96,0.00040493,2]
[394240440,1763401849059,-150.0,0.00040495,7]
[394240441,1763401849068,-700.0,0.000405,14]
[394240442,1763401849077,-1015.67267639,0.00040516,5]
[394240443,1763401849087,-2000.0,0.00040516,5]
[394240444,1763401849096,-150.0,0.00040531,7]
[394240445,1763401849105,-241.6,0.00040547,14]
[394240446,1763401849114,-150.0,0.00040551,7]
[394240447,1763401849125,-2361.0,0.00040578,7]
[394240448,1763401849135,-1815.0,0.000406,7]
[394240449,1763401849145,-700.0,0.000406,14]
[394240450,1763401849155,-157.34180474,0.00040603,15]
[394240451,1763401849165,-302.97862019,0.00040603,28]
[394240452,1763401849175,-241.6,0.00040621,14]
[394240453,1763401849185,-150.0,0.00040623,7]
[394240454,1763401849196,-150.0,0.00040623,7]
[394240455,1763401849206,-150.0,0.0004063,2]
[394240456,1763401849215,-150.0,0.0004063,2]
[394240457,1763401849224,-150.0,0.0004063,2]
[394240458,1763401849233,-150.0,0.0004063,2]
[394240459,1763401849242,-175.95,0.0004063,2]
[394240460,1763401849251,-286.66,0.0004063,2]
[394240461,1763401849260,-150.0,0.0004063,2]
[394240462,1763401849269,-150.0,0.0004063,2]
[394240463,1763401849278,-150.0,0.0004063,2]
[394240464,1763401849287,-150.0,0.0004063,2]
[394240465,1763401849297,-150.0,0.0004063,2]
[394240466,1763401849306,-1170.0,0.00040641,2]
[394240467,1763401849314,-1187.0,0.00040653,30]
[394240468,1763401849324,-160.7,0.00040669,2]
[394240469,1763401849333,-150.0,0.00040675,7]
[394240470,1763401849342,-2500.0,0.00040677,14]
[394240471,1763401849351,-1664.11794495,0.00040686,14]
[394240472,1763401849362,-835.88205505,0.00040686,14]
[394240473,1763401849371,-2500.0,0.00040694,14]
[394240474,1763401849382,-700.0,0.000407,14]
[394240475,1763401849391,-2500.0,0.00040703,14]
[394240476,1763401849400,-9939.0,0.00040709,5]
[394240477,1763401849409,-2500.0,0.00040712,14]
[394240478,1763401849418,-762.77,0.00040716,30]
[394240479,1763401849428,-500.0,0.00040728,2]
[394240480,1763401849437,-150.0,0.00040731,7]
[394240481,1763401849447,-150.0,0.00040761,7]
[394240482,1763401849456,-9223.56171588,0.00040772,15]
[394240483,1763401849465,-12035.57452739,0.00040772,15]
[394240484,1763401849474,-1273.0,0.000408,14]
[394240485,1763401849483,-150.0,0.00040814,7]
[394240486,1763401849492,-1000.0,0.00040822,14]
[394240487,1763401849501,-150.0,0.0004083,7]
[394240488,1763401849510,-535.0,0.00040859,7]
[394240489,1763401849519,-150.0,0.000409,30]
[394240490,1763401849528,-3971.35161452,0.000409,30]
[394240491,1763401849538,-150.0,0.000409,30]
[394240492,1763401849547,-454.95652902,0.000409,30]
[394240493,1763401849556,-510.31958486,0.000409,120]
[394240494,1763401849565,-150.0,0.00040911,7]
[394240495,1763401849574,-503.56266899,0.00040922,2]
[394240496,1763401849584,-150.0,0.00040934,7]
[394240497,1763401849594,-150.0,0.00040934,7]
[394240498,1763401849603,-157.34180474,0.00040984,15]
[394240499,1763401849613,-302.97862019,0.00040984,28]
[394240500,1763401849623,-221.30222769,0.0004099,5]
[394240501,1763401849633,-762.77595766,0.0004099,30]
[394240502,1763401849643,-150.0,0.00040991,7]
[394240503,1763401849653,-998.01072756,0.00041,120]
[394240504,1763401849663,-500.0,0.00041002,2]
[394240505,1763401849672,-150.0,0.00041038,7]
[394240506,1763401849681,-150.0,0.00041038,7]
[394240507,1763401849691,-9223.56171588,0.00041068,15]
[394240508,1763401849700,-12035.57452739,0.00041068,15]
[394240509,1763401849709,-1187.0,0.00041068,30]
[394240510,1763401849718,-369.74,0.00041085,2]
[394240511,1763401849728,-150.0,0.00041092,7]
[394240512,1763401849737,-1000.0,0.00041096,14]
[394240513,1763401849747,-500.0,0.00041096,120]
[394240514,1763401849757,-154.38,0.00041096,2]
[394240515,1763401849767,-500.0,0.000411,2]
[394240516,1763401849775,-1128.77547261,0.000411,2]
[394240517,1763401849784,-150.0,0.00041133,30]
[394240518,1763401849794,-150.0,0.00041193,30]
[394240519,1763401849803,-163.58,0.00041236,2]
[394240520,1763401849811,-150.0,0.00041245,30]
[394240521,1763401849821,-150.0,0.00041272,30]
[394240522,1763401849830,-500.0,0.00041276,2]
[394240523,1763401849839,-535.0,0.00041283,7]
[394240524,1763401849849,-421.10032997,0.00041285,90]
[394240525,1763401849859,-242.27,0.0004135,60]
[394240526,1763401849868,-503.56266899,0.00041364,3]
[394240527,1763401849880,-181.61613089,0.00041364,120]
[394240528,1763401849890,-9223.56171588,0.00041364,15]
[394240529,1763401849899,-12035.57452739,0.00041364,15]
[394240530,1763401849909,-187.26019762,0.00041364,2]
[394240531,1763401849918,-157.34180474,0.00041364,15]
[394240532,1763401849927,-302.97862019,0.00041364,28]
[394240533,1763401849936,-1000.0,0.0004137,14]
[394240534,1763401849945,-500.0,0.0004137,120]
[394240535,1763401849954,-150.0,0.000414,29]
[394240536,1763401849964,-203.108012,0.000414,21]
[394240537,1763401849973,-500.0,0.00041445,15]
[394240538,1763401849982,-500.0,0.00041445,15]
[394240539,1763401849990,-500.0,0.00041445,15]
[394240540,1763401849999,-500.0,0.00041445,15]
[394240541,1763401850009,-500.0,0.00041445,15]
[394240542,1763401850018,-500.0,0.00041445,15]
[394240543,1763401850026,-500.0,0.00041445,15]
[394240544,1763401850037,-500.0,0.00041445,15]
[394240545,1763401850050,-500.0,0.00041446,7]
[394240546,1763401850059,-151.0,0.00041447,2]
[394240547,1763401850073,-151.0,0.00041447,2]
[394240548,1763401850093,-556.24157073,0.0004145,10]
[394240549,1763401850105,-477.69489348,0.0004145,15]
[394240550,1763401850114,-2243.83579445,0.0004145,7]
[394240551,1763401850128,-150.0,0.00041452,30]
[394240552,1763401850137,-202.93627182,0.00041452,30]
[394240553,1763401850147,-189.05531488,0.00041452,30]
[394240554,1763401850156,-294.19480339,0.00041452,30]
[394240555,1763401850165,-150.0,0.00041452,30]
[394240556,1763401850175,-150.0,0.00041452,30]
[394240557,1763401850184,-150.0,0.00041452,30]
[394240558,1763401850190,-168.66866561,0.00041452,30]
[394240559,1763401850197,-150.0,0.00041452,30]
[394240560,1763401850203,-150.0,0.00041452,30]
[394240561,1763401850209,-150.0,0.00041452,30]
[394240562,1763401850215,-150.0,0.00041452,30]
[394240563,1763401850222,-150.0,0.00041452,30]
[394240564,1763401850228,-150.0,0.00041452,30]
[394240565,1763401850235,-150.0,0.00041452,30]
[394240566,1763401850241,-2050.0,0.00041453,7]
[394240567,1763401850248,-7016.59816281,0.00041458,30]
[394240568,1763401850255,-7016.59816281,0.00041458,30]
[394240569,1763401850270,-7016.59816281,0.00041458,30]